[Event "Polish Youth 1st League 2022"]
[Site "Lublin"]
[Date "2022.06.30"]
[Round "6.19"]
[White "Kania, Dominik"]
[Black "Panek, Bartosz"]
[Result "0-1"]
[ECO "B10"]
[WhiteElo "1872"]
[BlackElo "2022"]
[Annotator "RC"]
[PlyCount "95"]
[EventDate "2022.06.24"]
[EventType "team-tourn"]
[EventCountry "POL"]
[SourceTitle "playchess.com"]
[Source "ChessBase"]
[SourceQuality "1"]
[TimeControl "40/5400+30:1800+30"]

1. e4 {[%emt 0:00:10]} c6 {[%emt 0:00:18]} 2. d3 {[%emt 0:00:24]} d5 {[%emt 0:00:07]} 3. Nd2 {[%emt 0:00:06]} g6 {[%emt 0:03:03]} 4. g3 {[%emt 0:00:40]} Bg7 {[%emt 0:01:02]} 5. Bg2 {[%emt 0:00:12]} e5 {[%emt 0:01:22]} 6. Ngf3 {[%emt 0:00:07]} Ne7 {[%emt 0:01:06]} 7. O-O {[%emt 0:00:16]} O-O {[%emt 0:04:07]} 8. b3 {[%emt 0:01:02]} Qc7 {[%emt 0:02:01]} 9. Bb2 {[%emt 0:00:29]} h6 {[%emt 0:03:57]} 10. Qe2 {[%emt 0:03:46]} d4 {[%emt 0:09:01]} 11. Nh4 {[%emt 0:04:48]} g5 {[%emt 0:00:38]} 12. Nf5 {[%emt 0:03:54]} Nxf5 {[%emt 0:02:35]} 13. exf5 {[%emt 0:00:08]} Bxf5 {[%emt 0:00:05]} 14. f4 {[%emt 0:07:56]} exf4 {[%emt 0:34:32]} 15. gxf4 {[%emt 0:03:16]} g4 {[%emt 0:00:08]} 16. Qf2 {[%emt 0:01:50]} Qd7 {[%emt 0:10:36]} 17. Nc4 {[%emt 0:01:39]} c5 {[%emt 0:00:24]} 18. Ne5 {[%emt 0:01:35]} Bxe5 {[%emt 0:00:28]} 19. fxe5 {[%emt 0:00:06]} Bg6 {[%emt 0:00:05]} 20. Bc1 {[%emt 0:00:49]} Kh7 {[%emt 0:09:57]} 21. Qf4 {[%emt 0:00:53]} Rh8 {[%emt 0:00:53]} 22. Qxh6+ {[%emt 0:00:55]} Kg8 {[%emt 0:00:04]} 23. Qg5 {[%emt 0:01:42]} Nc6 {[%emt 0:00:28]} 24. e6 {[%emt 0:01:34]} Qd6 {[%emt 0:08:43]} 25. Bf4 {[%emt 0:02:38]} Qxe6 {[%emt 0:00:06]} 26. Bd5 {[%emt 0:01:25]} Qf5 {[%emt 0:00:27]} 27. Qxf5 {[%emt 0:06:03]} Bxf5 {[%emt 0:00:06]} 28. Bd6 {[%emt 0:03:50]} Rh5 {[%emt 0:00:12]} 29. Bxc5 {[%emt 0:07:37]} Bg6 {[%emt 0:00:17]} 30. Bxc6 {[%emt 0:01:04]} Rxc5 {[%emt 0:00:04]} 31. Bxb7 {[%emt 0:00:24]} Rb8 {[%emt 0:00:11]} 32. Ba6 {[%emt 0:02:55]} Rxc2 {[%emt 0:00:06]} 33. Rf2 {[%emt 0:24:37]} Rxf2 {[%emt 0:00:07]} 34. Kxf2 {[%emt 0:00:05]} Kg7 {[%emt 0:00:03]} 35. Re1 {[%emt 0:02:27]} Rh8 {[%emt 0:00:07]} 36. Kg2 {[%emt 0:02:11]} Rh3 {[%emt 0:01:07]} 37. Bc8 {[%emt 0:08:35]} f5 {[%emt 0:02:34]} 38. Ba6 {[%emt 0:06:02]} Re3 {[%emt 0:02:23]} 39. Rxe3 {[%emt 0:01:17]} dxe3 {[%emt 0:00:04]} 40. Kg3 {[%emt 0:00:00]} f4+ {[%emt 0:00:00]} 41. Kg2 {[%emt 0:00:23]} Kf6 {[%emt 0:01:56]} 42. d4 {[%emt 0:01:28]} Be4+ {[%emt 0:00:09]} 43. Kf1 {[%emt 0:01:04]} f3 {[%emt 0:00:14]} 44. Bc4 {[%emt 0:02:09]} Ke7 {[%emt 0:01:22]} 45. b4 {[%emt 0:01:10]} Kd6 {[%emt 0:00:56]} 46. a4 {[%emt 0:02:05]} Bd5 {[%emt 0:00:04]} 47. Bd3 {[%emt 0:06:25]} Bb3 {[%emt 0:00:27]} 48. a5 {[%emt 0:00:17]} 0-1

[Event "Polish Youth 1st League 2022"]
[Site "Lublin"]
[Date "2022.06.30"]
[Round "6.20"]
[White "Kubik, Rafal"]
[Black "Lysakowski, Kamil"]
[Result "1-0"]
[ECO "B50"]
[WhiteElo "1827"]
[BlackElo "1859"]
[Annotator "NA RC"]
[PlyCount "139"]
[EventDate "2022.06.24"]
[EventType "team-tourn"]
[EventCountry "POL"]
[SourceTitle "playchess.com"]
[Source "ChessBase"]
[SourceQuality "1"]
[TimeControl "40/5400+30:1800+30"]

1. e4 {[%emt 0:00:21]} c5 {[%emt 0:00:03]} 2. Nf3 {[%emt 0:00:44]} d6 {[%emt 0:00:03]} 3. c3 {[%emt 0:00:06]} Nf6 {[%emt 0:00:03]} 4. g3 {[%emt 0:00:08]} Nc6 {[%emt 0:00:16]} 5. d3 {[%emt 0:00:51]} e5 {[%emt 0:00:25]} 6. Bg2 {[%emt 0:00:26]} Be7 {[%emt 0:00:28]} 7. O-O {[%emt 0:01:11]} Be6 {[%emt 0:16:36]} 8. Re1 {[%emt 0:03:45]} O-O {[%emt 0:04:27]} 9. a3 {[%emt 0:10:43]} b5 {[%emt 0:05:04]} 10. h3 {[%emt 0:10:57]} h6 {[%emt 0:00:46]} 11. d4 {[%emt 0:02:37]} Na5 {[%emt 0:09:40]} 12. Nbd2 {[%emt 0:04:54]} Qc7 {[%emt 0:04:10]} 13. d5 (13. b4 $14 cxd4 14. cxd4) 13... Bd7 {[%emt 0:00:48]} 14. Nf1 {[%emt 0:17:30]} Nh7 {[%emt 0:07:15]} 15. Ne3 {[%emt 0:05:05]} Ng5 {[%emt 0:03:48]} (15... c4 $1 $15) 16. Nf5 {[%emt 0:03:01]} Bc8 {[%emt 0:12:24]} (16... Bxf5 $11 {remains equal.} 17. Bxg5 Bxg5 18. exf5 c4) 17. h4 {[%emt 0:02:22]} (17. N3h4 $16) 17... Nxf3+ {[%emt 0:00:13]} 18. Qxf3 {[%emt 0:02:14]} Nb3 {[%emt 0:03:23] [#]} (18... Bxf5 $14 {should be considered.} 19. Qxf5 Nb3) 19. Rb1 {[%emt 0:02:20]} ({White should play} 19. Bxh6 $1 $16 Bxf5 20. exf5 gxh6 21. f6 Bxf6 22. Qxf6 Nxa1 23. Bh3 (23. Rxa1 Qd8 $11)) 19... Bxf5 {[%emt 0:09:20]} 20. exf5 {[%emt 0:00:58]} Bf6 {[%emt 0:00:53]} 21. Be3 {[%emt 0:01:07]} c4 {[%emt 0:01:09]} 22. Qg4 {[%emt 0:01:18]} Kh7 {[%emt 0:01:24]} 23. Qh5 {[%emt 0:01:05]} Qe7 {[%emt 0:00:03]} 24. Be4 {[%emt 0:01:54]} Rh8 {[%emt 0:01:48]} 25. Kg2 {[%emt 0:01:13]} Rac8 {[%emt 0:03:35]} 26. g4 {[%emt 0:01:48]} Kg8 {[%emt 0:00:25]} 27. Rh1 {[%emt 0:00:43]} Nc5 {[%emt 0:04:55]} 28. Bxc5 {[%emt 0:00:18]} Rxc5 {[%emt 0:01:32]} 29. Rh3 {[%emt 0:00:35]} a5 {[%emt 0:06:11]} 30. Rbh1 {[%emt 0:00:10]} Qb7 {[%emt 0:03:26]} 31. g5 {[%emt 0:00:31]} Bd8 {[%emt 0:00:23]} 32. Qg4 {[%emt 0:05:34]} h5 {[%emt 0:00:10]} 33. Qf3 {[%emt 0:00:58]} Rc7 {[%emt 0:01:07]} 34. Rg3 {[%emt 0:01:06]} Rd7 {[%emt 0:00:12]} 35. g6 {[%emt 0:00:25]} f6 {[%emt 0:00:08]} 36. Qd1 {[%emt 0:00:16]} Rc7 {[%emt 0:00:31]} 37. Bf3 {[%emt 0:00:29]} Rc5 {[%emt 0:00:17]} 38. Qe2 {[%emt 0:01:37]} Bb6 {[%emt 0:01:02]} 39. Rd1 {[%emt 0:00:10]} Rh6 {[%emt 0:00:27]} 40. Bxh5 {[%emt 0:00:00]} Kf8 {[%emt 0:00:00]} 41. Rh3 {[%emt 0:01:29]} Bd8 {[%emt 0:01:45]} 42. Bf3 {[%emt 0:00:55]} Be7 {[%emt 0:12:28]} 43. Be4 {[%emt 0:01:12]} (43. a4 $18) 43... Qb8 {[%emt 0:02:04]} 44. Qe3 {[%emt 0:00:25]} (44. h5 $142) 44... a4 {[%emt 0:02:00]} 45. Kg3 {[%emt 0:00:27]} Qd8 {[%emt 0:00:26]} 46. Rh2 {[%emt 0:00:31]} Kg8 {[%emt 0:00:22]} 47. f4 {[%emt 0:01:05]} Kh8 {[%emt 0:03:28]} 48. Rf2 {[%emt 0:01:01]} Qf8 {[%emt 0:02:44]} 49. Rdf1 {[%emt 0:00:22]} Kg8 {[%emt 0:00:55]} 50. Kh3 {[%emt 0:04:42]} Kh8 {[%emt 0:00:56]} 51. fxe5 {[%emt 0:02:09]} fxe5 $2 {[%emt 0:00:26]} (51... Qb8 52. e6 Bd8) 52. f6 {[%emt 0:00:13]} gxf6 {[%emt 0:00:44]} 53. Rf5 {[%emt 0:06:47]} Kg7 {[%emt 0:01:52]} 54. Qg3 {[%emt 0:02:11]} Qh8 {[%emt 0:01:07]} 55. Rg1 {[%emt 0:01:42]} Qc8 {[%emt 0:00:34]} 56. Qg4 {[%emt 0:00:58]} Rc7 {[%emt 0:02:11]} 57. Rg3 {[%emt 0:01:39]} Qh8 {[%emt 0:00:53]} 58. h5 $18 {[%emt 0:02:45]} Qf8 {[%emt 0:00:29]} 59. Kg2 {[%emt 0:00:34]} Qd8 {[%emt 0:01:57]} 60. Rf1 {[%emt 0:00:24]} Qc8 {[%emt 0:02:50]} 61. Bf5 {[%emt 0:00:28]} Qa8 {[%emt 0:00:03]} 62. Be6 {[%emt 0:00:32]} Qa7 {[%emt 0:00:05]} 63. Qe2 {[%emt 0:00:22]} Qc5 {[%emt 0:01:00]} 64. Qd2 {[%emt 0:01:41]} Bd8 {[%emt 0:01:33]} 65. Rgf3 {[%emt 0:01:07]} Rxh5 {[%emt 0:00:35]} 66. Rh1 {[%emt 0:00:35]} Rg5+ {[%emt 0:00:35]} 67. Qxg5 {[%emt 0:02:01]} fxg5 {[%emt 0:00:02]} 68. Rh7+ {[%emt 0:00:10]} Kxg6 {[%emt 0:00:33]} 69. Bf5+ {[%emt 0:00:06]} Kf6 {[%emt 0:00:35]} 70. Be4# 1-0

[Event "Polish Youth 1st League 2022"]
[Site "Lublin"]
[Date "2022.06.30"]
[Round "6.21"]
[White "Musial, Igor"]
[Black "Karwot, Marek"]
[Result "1-0"]
[ECO "A08"]
[WhiteElo "1699"]
[BlackElo "1454"]
[Annotator "NA RC"]
[PlyCount "49"]
[EventDate "2022.06.24"]
[EventType "team-tourn"]
[EventCountry "POL"]
[SourceTitle "playchess.com"]
[Source "ChessBase"]
[SourceQuality "1"]
[TimeControl "40/5400+30:1800+30"]

1. e4 {[%emt 0:00:00]} e6 {[%emt 0:00:15]} 2. d3 {[%emt 0:00:55]} d5 {[%emt 0:00:16]} 3. Nd2 {[%emt 0:00:02]} Nf6 {[%emt 0:01:19]} 4. Ngf3 {[%emt 0:00:08]} c5 {[%emt 0:02:28]} 5. g3 {[%emt 0:00:06]} Nc6 {[%emt 0:01:02]} 6. Bg2 {[%emt 0:00:27]} Be7 {[%emt 0:01:14]} 7. O-O {[%emt 0:00:07]} O-O {[%emt 0:01:21]} 8. Re1 {[%emt 0:01:05]} b6 {[%emt 0:02:27]} 9. e5 {[%emt 0:00:08]} Nd7 {[%emt 0:04:37]} 10. Nf1 {[%emt 0:00:27]} Qc7 {[%emt 0:02:53]} 11. Bf4 {[%emt 0:00:07]} Qb7 {[%emt 0:12:18]} 12. h4 {[%emt 0:08:21]} f6 {[%emt 0:07:10]} 13. exf6 {[%emt 0:16:14]} Bxf6 {[%emt 0:06:24]} 14. Rxe6 {[%emt 0:15:14]} Bxb2 {[%emt 0:03:51]} 15. Rb1 {[%emt 0:00:04]} Bc3 {[%emt 0:03:05]} 16. Rb3 {[%emt 0:03:36]} Bf6 {[%emt 0:03:32]} 17. c4 {[%emt 0:11:41]} Ndb8 {[%emt 0:11:57]} 18. Rd6 {[%emt 0:09:16]} d4 {[%emt 0:05:40]} 19. Ng5 {[%emt 0:04:08]} Bxg5 {[%emt 0:06:54]} 20. hxg5 {[%emt 0:02:34]} Rxf4 {[%emt 0:05:26]} 21. gxf4 {[%emt 0:00:35]} Qc7 {[%emt 0:00:34]} 22. Qe2 {[%emt 0:01:55]} Qxd6 {[%emt 0:00:28]} 23. Qe8+ {[%emt 0:00:03]} Qf8 {[%emt 0:00:13]} 24. Bd5+ {[%emt 0:00:01]} Kh8 {[%emt 0:01:15]} 25. Qxf8# 1-0

[Event "Polish Youth 1st League 2022"]
[Site "Lublin"]
[Date "2022.06.30"]
[Round "6.22"]
[White "Niesporek, Franciszek"]
[Black "Rozek, Michal"]
[Result "1/2-1/2"]
[ECO "C54"]
[WhiteElo "1332"]
[BlackElo "1533"]
[Annotator "NA RC"]
[PlyCount "164"]
[EventDate "2022.06.24"]
[EventType "team-tourn"]
[EventCountry "POL"]
[SourceTitle "playchess.com"]
[Source "ChessBase"]
[SourceQuality "1"]
[TimeControl "40/5400+30:1800+30"]

1. e4 {[%emt 0:00:03]} e5 {[%emt 0:00:08]} 2. Nf3 {[%emt 0:00:04]} Nc6 {[%emt 0:00:08]} 3. Bc4 {[%emt 0:00:07]} Bc5 {[%emt 0:00:07]} 4. c3 {[%emt 0:00:09]} Nf6 {[%emt 0:00:10]} 5. d4 {[%emt 0:00:26]} exd4 {[%emt 0:00:13]} 6. cxd4 {[%emt 0:00:07]} Bb4+ {[%emt 0:00:08]} 7. Nbd2 {[%emt 0:00:13]} Nxe4 {[%emt 0:09:59]} 8. d5 {[%emt 0:00:10]} Ne7 {[%emt 0:03:26]} 9. O-O {[%emt 0:01:57]} Nxd2 {[%emt 0:04:11]} 10. Bxd2 {[%emt 0:02:35]} Bxd2 {[%emt 0:01:27]} 11. d6 {[%emt 0:00:37]} cxd6 {[%emt 0:09:02]} 12. Qxd2 {[%emt 0:00:13]} O-O {[%emt 0:03:06]} 13. Qxd6 {[%emt 0:02:36]} Nf5 {[%emt 0:03:24]} 14. Qf4 {[%emt 0:03:11]} d6 {[%emt 0:02:26]} 15. Rad1 {[%emt 0:07:25]} Be6 {[%emt 0:25:14]} 16. Bd3 {[%emt 0:14:17]} Qf6 {[%emt 0:17:53]} 17. Bxf5 {[%emt 0:14:20]} Qxf5 {[%emt 0:00:12]} 18. Qxf5 {[%emt 0:01:13]} Bxf5 {[%emt 0:00:05]} 19. Rxd6 {[%emt 0:00:11]} Rfd8 {[%emt 0:04:23]} 20. Rfd1 {[%emt 0:00:25]} Rxd6 {[%emt 0:02:19]} 21. Rxd6 Be6 {[%emt 0:00:46]} 22. a3 {[%emt 0:01:17]} Kf8 {[%emt 0:02:53]} 23. Kf1 {[%emt 0:03:05]} Ke7 {[%emt 0:01:47]} 24. Rd4 {[%emt 0:00:38]} Rc8 {[%emt 0:00:36]} 25. Ke2 {[%emt 0:00:29]} Rc2+ {[%emt 0:01:07]} 26. Rd2 {[%emt 0:00:05]} Rxd2+ {[%emt 0:00:26]} 27. Nxd2 {[%emt 0:00:10]} Bd5 {[%emt 0:00:30]} 28. f3 {[%emt 0:01:52]} Kd6 {[%emt 0:00:57]} 29. Kd3 {[%emt 0:01:31]} f5 {[%emt 0:01:28]} 30. Kd4 {[%emt 0:01:11]} Be6 {[%emt 0:01:01]} 31. f4 {[%emt 0:03:12]} Bd5 {[%emt 0:01:02]} 32. g3 {[%emt 0:00:37]} a6 {[%emt 0:01:06]} 33. Nf1 {[%emt 0:03:48]} g6 {[%emt 0:00:59]} 34. Ne3 {[%emt 0:00:33]} Be6 {[%emt 0:00:20]} 35. Nd1 {[%emt 0:01:57]} Bd5 {[%emt 0:01:35]} 36. Nc3 {[%emt 0:00:25]} Bb3 {[%emt 0:00:38]} 37. Ne2 {[%emt 0:01:26]} Bd5 {[%emt 0:00:37]} 38. Nc1 {[%emt 0:00:47]} Be4 {[%emt 0:00:25]} 39. Nb3 {[%emt 0:00:24]} b6 {[%emt 0:00:24]} 40. Nd2 {[%emt 0:00:00]} Bd5 {[%emt 0:00:00]} 41. Nf1 {[%emt 0:02:29]} Bf7 {[%emt 0:00:59]} 42. Nd2 {[%emt 0:03:37]} Bd5 {[%emt 0:00:25]} 43. h3 {[%emt 0:01:24]} h5 {[%emt 0:02:27]} 44. h4 {[%emt 0:00:43]} Ke6 {[%emt 0:01:32]} 45. Nb1 {[%emt 0:01:30]} Kd6 {[%emt 0:01:05]} 46. Nc3 {[%emt 0:00:49]} Bb3 {[%emt 0:00:39]} 47. Ne2 {[%emt 0:00:39]} Bd5 {[%emt 0:01:12]} 48. Nc1 {[%emt 0:00:23]} Be4 {[%emt 0:02:04]} 49. Na2 {[%emt 0:00:18]} Ke6 {[%emt 0:05:38]} 50. Nc3 {[%emt 0:03:38]} Bc6 {[%emt 0:00:57]} 51. Nd1 {[%emt 0:00:23]} Ba4 {[%emt 0:03:19]} 52. Ne3 {[%emt 0:00:27]} Bb3 {[%emt 0:00:29]} 53. Nf1 {[%emt 0:06:30]} Bd5 {[%emt 0:00:53]} 54. Nd2 {[%emt 0:00:48]} Kd6 {[%emt 0:00:21]} 55. Nb1 {[%emt 0:04:17]} Be6 {[%emt 0:00:39]} 56. Nc3 {[%emt 0:00:19]} Bb3 {[%emt 0:00:21]} 57. Ne2 {[%emt 0:00:42]} Be6 {[%emt 0:01:13]} 58. Nc1 {[%emt 0:00:08]} Bd7 {[%emt 0:05:23]} 59. Nd3 {[%emt 0:00:40]} b5 {[%emt 0:00:37]} 60. Ne5 {[%emt 0:00:20]} Be8 {[%emt 0:03:55]} 61. b4 {[%emt 0:00:14]} Bd7 {[%emt 0:01:26]} 62. Nxg6 {[%emt 0:00:22]} Be6 {[%emt 0:00:42]} 63. Ne5 {[%emt 0:03:18]} Bd5 {[%emt 0:01:08]} 64. Nd3 {[%emt 0:01:56]} Be6 {[%emt 0:00:22]} 65. Nc5 {[%emt 0:01:09]} Bc8 {[%emt 0:01:26]} 66. a4 {[%emt 0:12:27]} bxa4 {[%emt 0:02:13]} 67. Nxa4 {[%emt 0:00:08]} Bd7 {[%emt 0:00:32]} 68. Nc5 {[%emt 0:01:26]} Bb5 {[%emt 0:02:36]} 69. Nb7+ {[%emt 0:01:19]} Kc7 {[%emt 0:01:07]} 70. Na5 {[%emt 0:02:10]} Kd6 {[%emt 0:00:19]} 71. Nc4+ {[%emt 0:00:50]} Bxc4 {[%emt 0:00:34]} 72. Kxc4 {[%emt 0:00:06]} Kc6 {[%emt 0:00:21]} 73. Kd4 {[%emt 0:00:13]} Kd6 {[%emt 0:00:30]} 74. Kc3 {[%emt 0:00:45]} Kc7 {[%emt 0:00:35]} 75. Kd3 {[%emt 0:03:43]} Kd7 {[%emt 0:00:21]} 76. Ke3 {[%emt 0:01:32]} Ke7 {[%emt 0:00:47]} 77. Kd2 {[%emt 0:00:58]} Kd8 {[%emt 0:01:17]} 78. Kc2 {[%emt 0:01:08]} Kc8 {[%emt 0:00:47]} 79. Kb3 {[%emt 0:01:01]} Kb7 {[%emt 0:00:19]} 80. Ka3 {[%emt 0:01:27]} Ka7 {[%emt 0:00:19]} 81. Ka4 {[%emt 0:02:37]} Kb6 {[%emt 0:00:16]} 82. Kb3 {[%emt 0:00:08]} Kb7 {[%emt 0:00:15]} 1/2-1/2

[Event "Polish Youth 1st League 2022"]
[Site "Lublin"]
[Date "2022.06.30"]
[Round "6.23"]
[White "Mroz, Lena"]
[Black "Bugaj, Hanna"]
[Result "1-0"]
[ECO "C11"]
[WhiteElo "1719"]
[BlackElo "1779"]
[Annotator "NA RC"]
[PlyCount "99"]
[EventDate "2022.06.24"]
[EventType "team-tourn"]
[EventCountry "POL"]
[SourceTitle "playchess.com"]
[Source "ChessBase"]
[SourceQuality "1"]
[TimeControl "40/5400+30:1800+30"]

1. e4 {[%emt 0:00:02]} e6 {[%emt 0:00:06]} 2. d4 {[%emt 0:00:05]} d5 {[%emt 0:00:05]} 3. Nc3 {[%emt 0:00:13]} Nf6 {[%emt 0:00:12]} 4. e5 {[%emt 0:00:06]} Nfd7 {[%emt 0:00:08]} 5. Nce2 {[%emt 0:00:16]} c5 {[%emt 0:00:25]} 6. c3 {[%emt 0:00:25]} Nc6 {[%emt 0:00:38]} 7. Nf3 {[%emt 0:00:48]} Be7 {[%emt 0:07:47]} 8. Nf4 {[%emt 0:01:58]} b6 {[%emt 0:15:58]} 9. Bd3 {[%emt 0:05:31]} Bb7 {[%emt 0:02:28]} 10. a3 {[%emt 0:01:39]} c4 {[%emt 0:04:58]} 11. Bc2 {[%emt 0:02:48]} Qc7 {[%emt 0:01:23]} 12. Be3 {[%emt 0:05:32]} O-O-O {[%emt 0:08:28]} 13. Ne2 {[%emt 0:12:17]} Rdg8 {[%emt 0:05:53]} 14. b4 {[%emt 0:14:20]} g5 {[%emt 0:07:22]} 15. a4 {[%emt 0:03:43]} h5 {[%emt 0:07:48]} 16. Bc1 {[%emt 0:07:19]} f6 {[%emt 0:02:06]} 17. Ba3 {[%emt 0:03:05]} Nd8 {[%emt 0:03:04]} 18. exf6 {[%emt 0:07:37]} Bxf6 {[%emt 0:00:21]} 19. b5 {[%emt 0:08:54]} g4 {[%emt 0:02:08]} 20. Nd2 {[%emt 0:06:41]} e5 {[%emt 0:02:20]} 21. O-O {[%emt 0:05:44]} e4 {[%emt 0:04:19]} 22. Ng3 {[%emt 0:01:29]} Qf4 {[%emt 0:04:00]} 23. Ne2 {[%emt 0:01:19]} Qh6 {[%emt 0:03:53]} 24. a5 {[%emt 0:02:45]} h4 {[%emt 0:01:40]} 25. Kh1 {[%emt 0:04:38]} g3 {[%emt 0:11:24]} 26. fxg3 {[%emt 0:02:24]} h3 {[%emt 0:01:50]} 27. Rg1 {[%emt 0:01:05]} Ne6 {[%emt 0:02:06]} 28. Bd6 {[%emt 0:01:06]} Bg5 {[%emt 0:00:22]} 29. Nf1 {[%emt 0:00:33]} Nxd4 {[%emt 0:01:10]} 30. Qxd4 {[%emt 0:00:34]} Qxd6 {[%emt 0:00:05]} 31. axb6 {[%emt 0:00:07]} axb6 {[%emt 0:00:11]} 32. Bxe4 {[%emt 0:00:46]} Re8 {[%emt 0:00:30]} 33. Bf3 {[%emt 0:00:10]} Ne5 {[%emt 0:00:30]} 34. Bg4+ {[%emt 0:00:53]} Nxg4 {[%emt 0:01:07]} 35. Qxg4+ {[%emt 0:00:01]} Kc7 {[%emt 0:00:14]} 36. Qxg5 {[%emt 0:00:12]} hxg2+ {[%emt 0:00:39]} 37. Rxg2 {[%emt 0:00:18]} d4 {[%emt 0:00:42]} 38. Nxd4 {[%emt 0:00:21]} Rh7 {[%emt 0:00:36]} 39. Nc6 {[%emt 0:00:50]} Reh8 {[%emt 0:00:29]} 40. Qf4 {[%emt 0:00:00]} Qxf4 {[%emt 0:00:00]} 41. gxf4 {[%emt 0:00:57]} Rf8 {[%emt 0:02:18]} 42. Ne3 {[%emt 0:04:28]} Bxc6 43. bxc6 {[%emt 0:00:02]} Kxc6 {[%emt 0:02:48]} 44. Rf1 {[%emt 0:04:22]} b5 {[%emt 0:01:04]} 45. Rg6+ {[%emt 0:01:26]} Kb7 {[%emt 0:00:33]} 46. f5 {[%emt 0:00:43]} Rfh8 {[%emt 0:01:02]} 47. Rf2 {[%emt 0:00:44]} Rh3 {[%emt 0:00:22]} 48. Re6 {[%emt 0:02:15]} Rg3 {[%emt 0:02:04]} 49. f6 {[%emt 0:00:41]} Rg6 {[%emt 0:00:20]} 50. Re7+ {[%emt 0:00:11]} 1-0

[Event "Polish Youth 1st League 2022"]
[Site "Lublin"]
[Date "2022.06.30"]
[Round "6.24"]
[White "Sprzeczka, Emilia"]
[Black "Lajdamik, Kinga"]
[Result "0-1"]
[ECO "B16"]
[WhiteElo "1692"]
[BlackElo "1308"]
[Annotator "NA RC"]
[PlyCount "72"]
[EventDate "2022.06.24"]
[EventType "team-tourn"]
[EventCountry "POL"]
[SourceTitle "playchess.com"]
[Source "ChessBase"]
[SourceQuality "1"]
[TimeControl "40/5400+30:1800+30"]

1. e4 {[%emt 0:00:03]} c6 {[%emt 0:00:03]} 2. d4 {[%emt 0:00:09]} d5 {[%emt 0:00:04]} 3. Nc3 {[%emt 0:00:06]} dxe4 {[%emt 0:00:06]} 4. Nxe4 {[%emt 0:00:05]} Nf6 {[%emt 0:00:06]} 5. Nxf6+ {[%emt 0:00:07]} gxf6 {[%emt 0:00:08]} 6. c3 {[%emt 0:00:13]} Bf5 {[%emt 0:00:25]} 7. Ne2 {[%emt 0:00:15]} e6 {[%emt 0:00:26]} 8. Ng3 {[%emt 0:00:18]} Bg6 {[%emt 0:00:23]} 9. h4 {[%emt 0:00:30]} h6 {[%emt 0:09:10]} 10. h5 {[%emt 0:04:06]} Bh7 {[%emt 0:00:14]} 11. Bf4 {[%emt 0:04:40]} Nd7 {[%emt 0:12:55]} 12. Qd2 {[%emt 0:04:58]} Qb6 {[%emt 0:03:40]} 13. Bc4 {[%emt 0:05:55]} O-O-O {[%emt 0:01:08]} 14. O-O {[%emt 0:01:55]} f5 {[%emt 0:13:50]} 15. Qe2 {[%emt 0:07:12]} Re8 {[%emt 0:02:59]} 16. b4 {[%emt 0:06:28]} Qd8 {[%emt 0:02:15]} 17. b5 {[%emt 0:04:00]} c5 {[%emt 0:05:37]} 18. a4 {[%emt 0:10:00]} Qh4 {[%emt 0:02:44]} 19. Qd2 {[%emt 0:03:45]} Nf6 {[%emt 0:05:50]} 20. f3 {[%emt 0:14:09]} Rg8 {[%emt 0:06:54]} 21. a5 {[%emt 0:12:15]} Rxg3 {[%emt 0:05:14]} 22. Bxg3 {[%emt 0:00:10]} Qxg3 {[%emt 0:00:07]} 23. b6 {[%emt 0:02:14]} a6 {[%emt 0:01:51]} 24. Rfd1 {[%emt 0:09:54]} Nxh5 {[%emt 0:05:22]} 25. Qf2 {[%emt 0:06:23]} Qf4 {[%emt 0:02:03]} 26. Ra4 {[%emt 0:02:11]} Rd8 {[%emt 0:03:19]} 27. Bb3 {[%emt 0:01:25]} Bd6 {[%emt 0:08:59]} 28. g4 {[%emt 0:00:22]} Qg5 {[%emt 0:03:51]} 29. dxc5 {[%emt 0:00:28]} Bf4 {[%emt 0:01:37]} 30. Rxd8+ {[%emt 0:00:27]} Kxd8 {[%emt 0:00:01]} 31. Qd4+ {[%emt 0:00:18]} Ke7 {[%emt 0:01:07]} 32. Kf1 {[%emt 0:00:50]} Ng3+ {[%emt 0:01:03]} 33. Kf2 {[%emt 0:00:27]} Qh4 {[%emt 0:00:19]} 34. Qd3 {[%emt 0:00:37]} Ne4+ {[%emt 0:01:08]} 35. Ke2 {[%emt 0:00:16]} Qh2+ {[%emt 0:00:17]} 36. Ke1 {[%emt 0:00:22]} Bg3+ {[%emt 0:00:19]} 0-1

[Event "Polish Youth 1st League 2022"]
[Site "Lublin"]
[Date "2022.06.30"]
[Round "6.25"]
[White "Jedraszek, Pawel"]
[Black "Szlosarczyk, Hubert"]
[Result "1/2-1/2"]
[ECO "A40"]
[WhiteElo "1933"]
[BlackElo "1650"]
[Annotator "RC"]
[PlyCount "88"]
[EventDate "2022.06.24"]
[EventType "team-tourn"]
[EventCountry "POL"]
[SourceTitle "playchess.com"]
[Source "ChessBase"]
[SourceQuality "1"]
[TimeControl "40/5400+30:1800+30"]

1. d4 {[%emt 0:00:03]} e6 {[%emt 0:00:45]} 2. c4 {[%emt 0:00:09]} d5 {[%emt 0:00:49]} 3. Nf3 {[%emt 0:00:09]} Nf6 {[%emt 0:01:07]} 4. g3 {[%emt 0:00:17]} Bb4+ {[%emt 0:01:24]} 5. Bd2 {[%emt 0:00:39]} Be7 {[%emt 0:01:32]} 6. Bg2 {[%emt 0:00:28]} O-O {[%emt 0:01:26]} 7. O-O {[%emt 0:00:45]} c6 {[%emt 0:02:16]} 8. Qc2 {[%emt 0:01:21]} Nbd7 {[%emt 0:01:51]} 9. Nc3 {[%emt 0:07:28]} b6 {[%emt 0:03:35]} 10. e4 {[%emt 0:04:01]} dxe4 {[%emt 0:04:24]} 11. Nxe4 {[%emt 0:00:03]} Bb7 {[%emt 0:04:08]} 12. Bf4 {[%emt 0:04:43]} Nxe4 {[%emt 0:04:23]} 13. Qxe4 {[%emt 0:00:02]} Nf6 {[%emt 0:01:47]} 14. Qe2 {[%emt 0:01:55]} c5 {[%emt 0:03:49]} 15. Rfd1 {[%emt 0:00:48]} cxd4 {[%emt 0:08:30]} 16. Nxd4 {[%emt 0:00:18]} Qc8 {[%emt 0:00:30]} 17. Rac1 {[%emt 0:00:30]} Bxg2 {[%emt 0:00:30]} 18. Kxg2 {[%emt 0:00:30]} Qb7+ {[%emt 0:00:30]} 19. Qf3 {[%emt 0:00:30]} Qxf3+ {[%emt 0:00:30]} 20. Kxf3 {[%emt 0:00:30]} Bc5 {[%emt 0:00:30]} 21. a3 {[%emt 0:00:30]} Rfe8 {[%emt 0:00:30]} 22. Nb5 {[%emt 0:00:30]} e5 {[%emt 0:00:30]} 23. Be3 {[%emt 0:00:30]} Bxe3 {[%emt 0:00:30]} 24. Kxe3 {[%emt 0:00:30]} Re7 {[%emt 0:00:30]} 25. h3 {[%emt 0:16:55]} a6 {[%emt 0:21:01]} 26. Nc3 {[%emt 0:06:26]} Rc8 {[%emt 0:01:25]} 27. Nd5 {[%emt 0:10:11]} Re6 {[%emt 0:01:36]} 28. b4 {[%emt 0:01:59]} Kf8 {[%emt 0:02:25]} 29. Nxf6 {[%emt 0:01:00]} gxf6 {[%emt 0:00:33]} 30. Rd5 {[%emt 0:08:45]} Rec6 {[%emt 0:02:06]} 31. c5 {[%emt 0:01:04]} Ke7 {[%emt 0:00:46]} 32. Ke4 {[%emt 0:01:15]} Ke6 {[%emt 0:00:27]} 33. g4 {[%emt 0:00:11]} a5 {[%emt 0:07:30]} 34. Rc2 {[%emt 0:07:26]} axb4 {[%emt 0:01:36]} 35. axb4 {[%emt 0:00:02]} R8c7 {[%emt 0:06:06]} 36. f4 {[%emt 0:05:25]} exf4 {[%emt 0:01:33]} 37. Rf5 {[%emt 0:05:19]} bxc5 {[%emt 0:08:17]} 38. bxc5 {[%emt 0:00:17]} Rd7 {[%emt 0:02:53]} 39. Kxf4 {[%emt 0:03:45]} Rd4+ {[%emt 0:00:56]} 40. Kg3 {[%emt 0:00:00]} Rd3+ {[%emt 0:00:00]} 41. Kh4 {[%emt 0:14:12]} Ke7 {[%emt 0:09:19]} 42. Rh5 {[%emt 0:05:44]} Re6 {[%emt 0:01:10]} 43. Rxh7 {[%emt 0:01:28]} Ree3 {[%emt 0:00:11]} 44. Rh2 {[%emt 0:00:13]} Rc3 {[%emt 0:00:20]} 1/2-1/2